bitfinex-derivatives/quotes_ETHF0:USTF0_20250904
["timestamp","ask_amount","ask_price","bid_price","bid_amount"]
[1756973695732,2.23378288,4386.5,4386.4,3.2078]
[1756973695934,2.43618288,4386.5,4386.4,3.2078]
[1756973696132,0.6035,4386.0,4385.9,3.2078]
[1756973696430,2.23378288,4386.0,4385.9,3.2078]
[1756973697529,2.43618288,4386.0,4385.9,3.2078]
[1756973701634,0.8059,4386.0,4385.9,3.2078]
[1756973703027,1.0419,4386.0,4385.9,3.2078]
[1756973703934,0.8059,4386.0,4385.9,3.2078]
[1756973704231,1.0419,4386.0,4385.9,3.2078]
[1756973704432,0.8059,4386.0,4385.9,3.2078]
[1756973704627,1.0419,4386.0,4385.9,3.2078]
[1756973705128,2.67218288,4386.0,4385.9,3.2078]
[1756973707936,1.0419,4386.0,4385.9,3.2078]
[1756973708129,2.67218288,4386.0,4385.9,3.2078]
[1756973710736,0.6463,4386.0,4385.9,3.2078]
[1756973711326,8.794,4386.9,4386.0,0.41028]
[1756973711639,0.2951,4386.9,4386.8,3.2078]
[1756973711935,0.4883,4386.9,4386.8,3.2078]
[1756973712727,0.7243,4386.9,4386.8,3.2078]
[1756973714153,0.4883,4386.9,4386.8,3.2078]
[1756973714440,0.5311,4386.9,4386.8,3.2078]
[1756973714638,0.1152,4387.0,4386.8,3.2078]
[1756973714838,1.63028288,4387.3,4386.8,3.2078]
[1756973715040,0.5312,4387.2,4386.8,3.2078]
[1756973715337,0.2952,4387.1,4386.8,3.2078]
[1756973715537,0.236,4387.2,4386.8,3.2078]
[1756973716334,0.2952,4387.1,4386.8,3.2078]
[1756973716537,0.236,4387.2,4386.8,3.2078]
[1756973717040,0.2952,4387.1,4386.8,3.2078]
[1756973717340,0.236,4387.2,4386.8,3.2078]
[1756973717536,0.7045,4386.9,4386.8,3.2078]
[1756973717740,0.9405,4386.9,4386.8,3.2078]
[1756973718435,2.33478288,4386.9,4386.8,3.2078]
[1756973718641,2.57078288,4386.9,4386.8,3.2078]
[1756973721647,2.3258992,4386.9,4386.8,3.2324]
[1756973721849,2.5608992,4386.9,4386.8,3.2324]
[1756973723844,1.92548288,4386.9,4386.8,3.2324]
[1756973724047,0.5302,4386.9,4386.8,3.2324]
[1756973725246,0.1228,4387.5,4387.2,0.0246]
[1756973725450,0.418,4387.5,4387.4,4.87038288]
[1756973725657,0.653,4387.5,4387.4,4.87038288]
[1756973726843,0.5302,4387.5,4387.4,4.87038288]
[1756973727049,0.235,4387.5,4387.4,4.87038288]
[1756973727357,8.794,4387.6,4387.5,0.0077]
[1756973727651,0.235,4387.7,4387.5,0.0246]
[1756973727851,0.235,4387.7,4387.6,0.0077]
[1756973728152,0.235,4387.7,4387.6,0.0323]
[1756973728357,0.2952,4387.8,4387.7,0.0077]
[1756973728648,0.5302,4387.8,4387.7,1.66258288]
[1756973728849,0.2952,4388.2,4387.8,0.0077]
[1756973729050,0.2952,4388.4,4388.3,0.0323]
[1756973729354,0.5302,4388.4,4388.3,0.0323]
[1756973730249,0.2952,4388.4,4388.3,0.0323]
[1756973731154,0.3502,4388.5,4388.4,0.009]
[1756973731349,0.6454,4388.5,4388.4,1.66808288]
[1756973731549,0.5302,4388.5,4388.4,1.66808288]
[1756973731853,0.2952,4388.6,4388.5,0.009]
[1756973732052,0.2952,4388.9,4388.6,0.009]
[1756973732354,0.5304,4389.0,4388.9,0.0288]
[1756973732758,0.8256,4389.0,4388.9,0.0288]
[1756973733157,0.4159,4389.0,4388.9,0.0288]
[1756973733452,0.6256,4389.0,4388.9,0.0288]
[1756973733651,0.8252,4389.0,4388.9,0.0144]
[1756973736463,0.8252,4389.0,4388.9,0.0288]
[1756973737062,0.8252,4389.0,4388.9,0.0144]
[1756973737764,0.53,4389.0,4388.8,3.2078]
[1756973737956,0.7045,4388.9,4388.8,3.2078]
[1756973738560,0.7045,4388.3,4388.2,3.2222]
[1756973738759,0.7045,4388.3,4388.2,3.2366]
[1756973739767,0.7045,4388.3,4388.2,3.2222]
[1756973740662,0.7045,4388.3,4388.2,3.2366]
[1756973742369,0.5049,4388.3,4388.2,3.2366]
[1756973742570,0.5049,4388.3,4388.2,4.86688288]
[1756973744275,0.1207,4388.5,4388.2,5.10188288]
[1756973744476,0.3027,4388.4,4388.3,0.0086]
[1756973744677,0.3027,4388.4,4388.3,0.0362]
[1756973745075,0.1207,4389.0,4388.4,0.41006]
[1756973745270,0.8178,4389.0,4388.9,3.2078]
[1756973745475,0.8178,4389.0,4388.9,3.2216]
[1756973745876,0.8178,4389.0,4388.9,3.2354]
[1756973746778,0.6161,4389.0,4388.9,3.2354]
[1756973747077,0.4234,4389.0,4388.9,3.2354]
[1756973747271,0.6161,4389.0,4388.9,3.2354]
[1756973751068,0.4234,4389.0,4388.9,3.244]
[1756973751477,0.3027,4389.0,4388.9,3.244]
[1756973751680,0.3027,4389.0,4388.9,3.479]
[1756973751884,0.3134,4389.5,4389.4,0.0276]
[1756973752083,0.3134,4389.5,4389.4,3.2354]
[1756973752274,0.5151,4389.5,4389.4,3.2354]
[1756973752475,0.3027,4389.5,4389.4,3.479]
[1756973752680,0.4282,4389.5,4389.4,3.479]
[1756973754582,0.6209,4389.5,4389.4,3.4704]
[1756973757576,0.4282,4389.5,4389.4,3.4704]
[1756973757779,0.4282,4389.5,4389.4,3.479]
[1756973759182,0.4282,4389.5,4389.4,3.4704]
[1756973759382,0.6209,4389.5,4389.4,3.4704]
[1756973759682,0.4282,4389.5,4389.4,3.479]
[1756973761680,0.4282,4389.5,4389.4,3.4704]
[1756973761885,0.8226,4389.5,4389.4,3.2078]
[1756973762679,4.8226,4389.5,4389.4,3.2078]
[1756973765992,5.0576,4389.5,4389.4,3.2078]
[1756973769192,4.8226,4389.5,4389.4,3.2078]
[1756973769494,5.0576,4389.5,4389.4,3.2078]
[1756973773297,5.0576,4389.5,4388.8,5.19676473]
[1756973773599,0.4097,4388.9,4388.8,3.2078]
[1756973773789,0.6447,4388.9,4388.8,3.2078]
[1756973774098,0.9602,4388.9,4388.8,3.2078]
[1756973776692,0.124,4388.5,4388.3,3.2078]
[1756973776899,0.8492,4388.5,4388.4,0.0149]
[1756973777098,1.0842,4388.5,4388.4,0.0149]
[1756973777803,0.7252,4388.4,4388.3,3.2078]
[1756973781703,2.71416473,4388.4,4388.3,3.2078]
[1756973782492,0.7252,4387.9,4387.8,3.2078]
[1756973782697,0.9602,4387.9,4387.8,3.2078]
[1756973783104,0.9602,4387.9,4387.8,3.2227]
[1756973783398,0.9602,4387.9,4387.8,3.2078]
[1756973783600,0.9602,4387.9,4387.8,3.2376]
[1756973784803,0.9602,4387.9,4387.8,3.2078]
[1756973785305,0.9602,4387.9,4387.8,3.2227]
[1756973787707,0.8492,4387.5,4387.4,0.0149]
[1756973787902,1.0842,4387.5,4387.4,0.0149]
[1756973788206,0.7687,4387.5,4387.3,3.2078]
[1756973788408,0.7252,4387.4,4387.3,3.2078]
[1756973794314,0.7252,4386.9,4386.8,3.2227]
[1756973794617,0.9602,4386.9,4386.8,0.0149]
[1756973796810,0.1138,4387.6,4386.9,0.0093]
[1756973797018,0.1138,4387.6,4387.5,5.23586473]
[1756973797216,0.3155,4388.1,4387.5,5.23586473]
[1756973797417,0.4395,4388.0,4387.9,0.0391]
[1756973799022,0.4395,4388.0,4387.9,0.0298]
[1756973799322,0.6437,4388.0,4387.9,0.0298]
[1756973799618,0.1045,4388.2,4388.1,0.0298]
[1756973799823,0.124,4389.0,4388.1,3.2376]
[1756973800018,0.4395,4389.0,4388.9,3.2078]
[1756973800321,0.235,4389.3,4388.9,3.2078]
[1756973800521,0.5505,4389.3,4389.2,1.98896473]
[1756973800711,0.4395,4389.5,4389.2,1.98896473]
[1756973800915,0.3155,4389.5,4389.2,1.98896473]
[1756973801422,0.3155,4389.5,4389.4,3.2078]
[1756973802611,0.4384,4389.5,4389.4,3.2078]
[1756973805318,0.6393,4389.5,4389.4,3.2078]
[1756973805517,0.8339,4389.0,4388.9,3.2078]
[1756973805814,1.0689,4389.0,4388.9,3.2078]
[1756973807414,2.69785713,4389.0,4388.9,3.2078]
[1756973808724,2.64785713,4389.0,4388.9,3.2078]
[1756973809315,0.5829,4389.0,4388.9,3.3634]
[1756973809521,0.432,4389.5,4389.4,0.1556]
[1756973809824,0.8579,4389.5,4389.4,0.1556]
[1756973810026,1.0589,4389.5,4389.4,0.1556]
[1756973813324,0.8669,4389.5,4389.4,0.1556]
[1756973813524,0.432,4389.5,4389.4,0.2042]
[1756973813717,0.432,4389.5,4389.4,0.1556]
[1756973813922,0.6329,4389.5,4389.4,0.1556]
[1756973814828,0.432,4389.5,4389.4,3.412]
[1756973815028,0.3091,4389.5,4389.4,3.412]
[1756973815529,0.234,4389.8,4389.7,0.1556]
[1756973815731,0.4349,4389.8,4389.7,0.1556]
[1756973816231,0.744,4389.8,4389.7,0.1556]
[1756973816630,0.3091,4390.4,4389.8,0.0486]
[1756973816831,0.711,4390.4,4390.3,3.3634]
[1756973817329,0.711,4390.4,4390.3,3.2856]
[1756973819230,0.711,4390.4,4390.3,3.2078]
[1756973819816,0.711,4390.4,4389.2,5.86089865]
[1756973819817,0.3091,4390.3,4389.8,3.2078]
[1756973820032,0.711,4389.9,4389.8,3.2078]
[1756973820430,0.711,4389.9,4389.8,3.2856]
[1756973821726,0.711,4389.9,4389.8,3.2078]
[1756973822228,0.835,4390.5,4390.4,0.0778]
[1756973822433,0.8339,4390.0,4389.9,0.1556]
[1756973822933,0.8339,4390.0,4389.9,0.0778]
[1756973824323,0.5248,4390.0,4389.8,3.2078]
[1756973824519,0.711,4389.9,4389.8,3.2078]
[1756973825729,0.1229,4389.5,4389.4,0.0778]
[1756973825926,0.3091,4389.4,4389.3,3.2078]
[1756973826224,0.711,4389.4,4389.3,3.2856]
[1756973826832,0.711,4389.4,4389.3,3.3634]
[1756973828528,0.1229,4389.5,4389.3,3.412]
[1756973828727,0.432,4389.5,4389.4,0.1556]
[1756973829032,0.432,4390.0,4389.9,0.1556]
[1756973829332,0.432,4390.0,4389.9,3.412]
[1756973829534,0.6329,4390.0,4389.9,3.3634]
[1756973831535,0.8339,4390.0,4389.9,3.2078]
[1756973831835,0.8339,4389.5,4389.4,4.9134824]
[1756973832434,0.8339,4389.5,4389.4,4.9912824]
[1756973832633,0.304,4389.9,4389.4,5.0404824]
[1756973832836,0.5012,4389.9,4389.8,1.7852824]
[1756973833228,0.6969,4389.9,4389.8,1.7852824]
[1756973836136,0.1139,4389.5,4389.4,3.2866]
[1756973836333,0.8108,4389.5,4389.4,4.9144824]
[1756973836530,0.8108,4389.5,4389.4,4.9932824]
[1756973839834,0.8108,4389.5,4389.4,3.2866]
[1756973840035,0.8108,4389.5,4389.4,3.2078]
[1756973840425,0.8108,4389.5,4389.4,3.2866]
[1756973841633,0.8108,4389.5,4389.4,3.2078]
[1756973842036,0.8108,4389.5,4389.4,3.2866]
[1756973843639,0.8108,4389.5,4389.4,3.3654]
[1756973844142,0.6151,4389.5,4389.4,3.3654]
[1756973844439,0.4179,4389.5,4389.4,3.4146]
[1756973848845,0.6151,4389.5,4389.4,3.3654]
[1756973850246,0.8108,4389.5,4389.4,3.3654]
[1756973851448,0.8108,4389.5,4389.4,3.2078]
[1756973851650,0.8108,4389.5,4389.4,3.2866]
[1756973852152,0.8108,4389.5,4389.4,3.3654]
[1756973855649,0.1045,4389.7,4389.4,3.3654]
[1756973855854,0.0553,4389.7,4389.6,1.8346824]
[1756973856150,0.304,4390.3,4389.6,1.7854824]
[1756973856351,0.304,4390.3,4390.1,4.8356824]
[1756973856352,0.1972,4390.3,4390.1,4.8356824]
[1756973856545,0.304,4390.2,4390.1,4.8356824]
[1756973857960,0.5012,4390.2,4390.1,3.2078]
[1756973858559,0.7352,4390.2,4390.1,3.2078]
[1756973858854,0.538,4390.2,4390.1,3.2078]
[1756973863066,0.538,4390.2,4390.1,4.8356824]
[1756973865166,0.7352,4390.2,4390.1,4.8356824]
[1756973867464,0.7352,4390.2,4390.1,3.2078]
[1756973869478,0.234,4390.2,4390.1,3.2078]
[1756973869679,0.4375,4390.5,4390.1,3.2078]
[1756973869879,0.4375,4390.5,4390.4,1.9878918]
[1756973870877,0.3145,4390.5,4390.1,5.1956918]
[1756973871069,0.124,4390.5,4390.1,5.1956918]
[1756973871275,0.1905,4390.4,4390.1,5.1956918]
[1756973871578,0.3135,4390.4,4390.1,5.1956918]
[1756973871778,0.3135,4390.3,4390.1,5.1956918]
[1756973871978,0.3145,4390.5,4390.1,5.1956918]
[1756973872481,0.1905,4390.4,4390.1,5.1956918]
[1756973872683,0.3135,4390.4,4390.1,5.1956918]
[1756973872885,0.124,4390.5,4390.1,5.1956918]
[1756973873080,0.1905,4390.4,4390.1,5.1956918]
[1756973873280,0.3135,4390.3,4390.1,5.1956918]
[1756973873482,0.124,4390.5,4390.1,5.1956918]
[1756973873682,0.3135,4390.4,4390.1,5.1956918]
[1756973873880,0.3145,4390.5,4390.1,5.1956918]
[1756973874181,0.3135,4390.4,4390.1,5.1956918]
[1756973874376,0.3145,4390.5,4390.1,5.1956918]
[1756973874582,0.3135,4390.4,4390.1,3.2078]
[1756973874780,0.3135,4390.4,4390.1,5.1956918]
[1756973875780,0.3135,4390.3,4390.1,5.1956918]
[1756973875978,0.124,4390.5,4390.1,5.1956918]
[1756973876180,0.1905,4390.4,4390.1,5.1956918]
[1756973876372,0.3135,4390.4,4390.1,5.1956918]
[1756973876572,0.124,4390.5,4390.1,5.1956918]
[1756973876772,0.3135,4390.4,4390.1,5.1956918]
[1756973876979,0.1905,4390.3,4390.1,5.1956918]
[1756973877179,0.124,4390.5,4390.1,5.1956918]
[1756973877180,0.3135,4390.2,4390.1,5.1956918]
[1756973877682,0.3135,4390.2,4390.1,3.2078]
[1756973877885,0.504,4390.2,4390.1,3.2078]
[1756973878986,0.3135,4390.2,4390.1,3.2078]
[1756973880479,0.7056,4390.2,4390.1,3.2078]
[1756973883886,0.9396,4390.2,4390.1,3.2078]
[1756973885892,0.3135,4390.2,4390.1,3.2078]
[1756973886190,0.5475,4390.2,4390.1,3.2078]
[1756973886392,0.3135,4390.2,4390.1,3.2078]
[1756973886690,0.5475,4390.2,4390.1,3.2078]
[1756973887187,0.738,4390.2,4390.1,3.2078]
[1756973889987,0.4375,4390.5,4390.1,3.2078]
[1756973890188,0.5475,4390.6,4390.4,1.9878918]
[1756973890891,0.3135,4390.5,4390.4,1.9878918]
[1756973892896,0.234,4390.5,4390.4,1.9878918]
[1756973893590,0.2961,4390.7,4390.4,1.9878918]
[1756973893791,0.5301,4390.6,4390.4,1.9878918]
[1756973893994,0.2961,4390.5,4390.4,1.9878918]
[1756973894398,0.4217,4390.5,4390.4,1.9878918]
[1756973895394,0.6126,4390.5,4390.4,1.9878918]
[1756973895698,0.4217,4390.5,4390.4,1.9878918]
[1756973895996,0.2961,4390.5,4390.4,1.9878918]
[1756973897098,0.1256,4390.5,4390.3,1.9878918]
[1756973897398,0.2961,4390.4,4390.3,1.9878918]
[1756973898292,0.487,4390.4,4390.3,1.9878918]
[1756973899297,0.487,4390.4,4390.1,3.2078]
[1756973899500,0.2961,4390.3,4390.1,3.2078]
[1756973899689,0.2961,4390.4,4390.1,3.2078]
[1756973899894,0.487,4390.4,4390.3,1.9878918]
[1756973900690,0.487,4390.4,4390.3,5.1956918]
[1756973901204,0.6776,4390.4,4390.3,3.2078]
[1756973902401,0.6776,4390.4,4390.3,5.1956918]
[1756973902803,0.2961,4390.4,4390.3,5.1956918]
[1756973903300,0.487,4390.4,4390.3,5.1972918]
[1756973903500,0.6776,4390.4,4390.3,5.1972918]
[1756973905105,0.6776,4390.4,4390.3,3.2094]
[1756973909411,0.487,4390.4,4390.3,3.2094]
[1756973909706,0.487,4390.4,4390.3,5.1972918]
[1756973914612,0.487,4390.4,4390.3,1.9894918]
[1756973914813,0.487,4390.4,4390.3,5.1972918]
[1756973916114,0.487,4390.4,4390.3,3.2094]
[1756973920211,0.2961,4390.4,4390.3,3.2094]
[1756973920418,0.487,4390.4,4390.3,3.2094]
[1756973921920,0.2961,4390.4,4390.3,3.2094]
[1756973924716,0.2961,4390.4,4390.3,0.0016]
[1756973924923,0.2961,4390.4,4390.3,3.2094]
[1756973927211,0.4943,4390.4,4390.3,3.2094]
[1756973928126,0.6986,4390.4,4390.3,3.2094]
[1756973929819,0.4943,4390.4,4390.3,3.2094]
[1756973933727,0.4025,4389.9,4388.9,3.2078]
[1756973933938,0.1197,4389.0,4388.9,3.2078]
[1756973934118,0.4144,4389.0,4388.9,4.83528322]
[1756973935125,0.1197,4388.5,4387.8,3.2078]
[1756973935330,0.2947,4388.4,4388.3,1.62748322]
[1756973935729,0.4929,4388.4,4388.3,1.62748322]
[1756973936031,0.2947,4387.9,4387.8,1.62748322]
[1756973936825,0.4929,4387.9,4387.8,1.62748322]
[1756973937722,0.1982,4387.9,4387.6,1.62748322]
[1756973938033,0.3179,4387.5,4387.2,3.2078]
[1756973938335,0.2947,4387.4,4387.3,1.62748322]
[1756973938731,0.3179,4387.5,4387.2,3.2078]
[1756973939031,0.2947,4387.4,4387.3,1.62748322]
[1756973940134,0.2947,4387.3,4387.2,3.2078]
[1756973940628,0.2947,4387.3,4387.1,1.62748322]
[1756973940831,0.2947,4387.4,4387.1,1.62748322]
[1756973941235,0.1197,4387.0,4386.9,1.62748322]
[1756973941435,0.3179,4387.0,4386.7,3.2078]
[1756973941637,1.62748322,4386.9,4386.3,1.62748322]
[1756973941931,0.1982,4386.8,4386.3,1.62748322]
[1756973942131,0.1982,4386.8,4385.7,3.2078]
[1756973942328,0.2947,4386.6,4386.2,1.62748322]
[1756973942528,0.2947,4386.4,4386.2,1.62748322]
[1756973942729,0.1197,4386.5,4386.2,1.62748322]
[1756973942930,0.1982,4386.4,4385.8,0.233]
[1756973943130,0.1197,4386.5,4386.2,1.62748322]
[1756973943332,0.2947,4386.4,4386.2,1.62748322]
[1756973943633,0.2947,4386.3,4386.2,1.62748322]
[1756973943937,0.3179,4386.5,4385.9,1.62748322]
[1756973944132,0.3179,4386.5,4385.7,3.4408]
[1756973944331,0.2947,4386.4,4385.9,1.62748322]
[1756973944739,0.1982,4386.4,4385.9,1.62748322]
[1756973945035,0.2947,4386.2,4385.9,1.62748322]
[1756973945234,0.2947,4386.4,4385.9,1.62748322]
[1756973945934,0.2947,4386.4,4385.7,3.4408]
[1756973946141,0.2947,4386.3,4386.1,1.62748322]
[1756973946334,0.2947,4386.4,4386.1,1.62748322]
[1756973947040,0.1197,4386.5,4385.7,3.2078]
[1756973947338,0.2947,4385.9,4385.8,1.62748322]
[1756973948133,0.1197,4386.0,4385.8,1.62748322]
[1756973948339,0.4144,4386.0,4385.8,1.62748322]
[1756973949135,0.1197,4386.0,4385.8,1.62748322]
[1756973949334,0.2947,4385.9,4385.8,1.62748322]
[1756973949736,0.2947,4385.9,4385.2,3.2078]
[1756973949737,0.1982,4385.8,4385.5,1.62748322]
[1756973949936,0.1982,4385.9,4385.5,1.62748322]
[1756973950134,0.1982,4385.8,4385.5,1.62748322]
[1756973950442,0.1982,4385.9,4385.5,1.62748322]
[1756973950642,1.94538322,4386.0,4385.5,1.62748322]
[1756973951239,0.2947,4385.9,4385.5,1.62748322]
[1756973951442,1.74718322,4386.0,4385.5,1.62748322]
[1756973951643,1.94538322,4386.0,4385.5,1.62748322]
[1756973951842,0.1982,4385.9,4385.5,1.62748322]
[1756973952038,0.2947,4385.8,4385.5,1.62748322]
[1756973952244,0.1197,4386.0,4385.5,1.62748322]
[1756973952443,0.3068,4385.9,4385.8,1.62748322]
[1756973954742,0.3068,4385.9,4385.3,0.234]
[1756973955041,1.62748322,4385.9,4385.2,3.2078]
[1756973955242,0.1197,4385.5,4385.2,3.2078]
[1756973955539,0.3068,4385.3,4384.8,0.233]
[1756973955745,0.3068,4385.4,4385.0,1.62748322]
[1756973955946,0.1197,4385.5,4385.0,1.62748322]
[1756973956139,0.3068,4385.4,4385.0,1.62748322]
[1756973956340,0.1197,4385.5,4385.0,1.62748322]
[1756973956541,0.3068,4385.4,4385.0,1.62748322]
[1756973956947,0.3177,4385.5,4385.0,1.62748322]
[1756973957149,0.1197,4385.5,4385.0,1.62748322]
[1756973957647,0.198,4385.4,4385.0,1.62748322]
[1756973957946,0.3068,4385.3,4385.0,1.62748322]
[1756973958141,0.3177,4385.5,4385.0,1.62748322]
[1756973958342,0.1197,4385.5,4385.0,1.62748322]
[1756973958945,0.3068,4385.4,4385.0,1.62748322]
[1756973959347,0.3177,4385.5,4385.0,1.62748322]
[1756973959649,0.3068,4385.3,4385.0,1.62748322]
[1756973960043,0.198,4385.4,4385.0,1.62748322]
[1756973960242,0.198,4385.3,4385.0,1.62748322]
[1756973960448,0.3068,4385.4,4385.0,1.62748322]
[1756973960649,0.3068,4385.3,4385.0,1.62748322]
[1756973960849,0.3177,4385.5,4385.0,1.62748322]
[1756973961045,0.1197,4385.5,4385.0,1.62748322]
[1756973961345,0.3068,4385.4,4385.0,1.62748322]
[1756973961554,0.3177,4385.5,4385.0,1.62748322]
[1756973961851,0.1197,4385.5,4385.0,1.62748322]
[1756973962151,0.3068,4385.4,4385.3,1.62748322]
[1756973962648,0.3068,4385.4,4384.8,0.233]
[1756973962850,0.3068,4385.4,4385.1,1.62748322]
[1756973963050,0.1197,4385.5,4385.1,1.62748322]
[1756973963250,0.3177,4385.5,4385.1,1.62748322]
[1756973963547,0.3068,4385.4,4385.1,1.62748322]
[1756973964044,0.3177,4385.5,4385.1,1.62748322]
[1756973964245,0.3068,4385.4,4385.1,1.62748322]
[1756973964647,0.1197,4385.5,4385.1,1.62748322]
[1756973965245,0.3177,4385.5,4385.1,1.62748322]
[1756973965952,0.1197,4385.5,4385.1,1.62748322]
[1756973966256,0.3068,4385.3,4385.1,1.62748322]
[1756973966557,0.3068,4385.3,4384.7,5.06828322]
[1756973966748,0.198,4385.3,4384.7,5.06828322]
[1756973967051,0.3068,4385.4,4384.7,5.06828322]
[1756973967353,0.0554,4385.2,4384.7,5.06828322]
[1756973967553,0.0554,4385.2,4385.0,1.62748322]
[1756973967753,0.5602,4385.2,4385.0,1.62748322]
[1756973967950,0.3068,4385.1,4385.0,1.62748322]
[1756973969667,0.1197,4385.0,4384.2,3.2078]
[1756973969864,0.3068,4384.7,4384.3,0.22807]
[1756973970067,1.82548322,4384.8,4384.3,0.233]
[1756973970367,1.62748322,4384.8,4384.3,0.233]
[1756973970565,0.3068,4384.7,4384.3,0.233]
[1756973970763,1.82548322,4384.8,4384.3,0.233]
[1756973971464,0.5048,4384.7,4384.3,0.233]
[1756973971664,0.3068,4384.4,4384.3,0.233]
[1756973972067,0.3068,4384.4,4384.2,4.83528322]
[1756973972270,0.3068,4384.4,4384.3,0.233]
[1756973973967,0.1197,4384.5,4384.3,0.233]
[1756973974169,0.3068,4384.9,4384.3,0.233]
[1756973974369,0.198,4384.9,4384.5,1.62748322]
[1756973974566,0.3068,4384.9,4384.5,1.62748322]
[1756973974970,0.198,4384.8,4384.5,1.62748322]
[1756973975165,0.1197,4385.0,4384.5,1.62748322]
[1756973975371,0.3622,4385.2,4384.9,4.83528322]
[1756973975668,0.0554,4385.2,4384.9,4.83528322]
[1756973976270,0.3622,4385.2,4384.9,3.2078]
[1756973976472,0.3622,4385.2,4385.1,1.62748322]
[1756973976670,0.3068,4385.2,4385.1,1.62748322]
[1756973978171,0.2534,4385.4,4385.0,1.62748322]
[1756973978373,0.3068,4385.2,4384.9,3.4408]
[1756973978672,0.198,4385.2,4385.0,1.62748322]
[1756973978872,0.3068,4385.1,4385.0,1.62748322]
[1756973980170,0.3068,4385.1,4384.9,3.4408]
[1756973980171,0.5048,4385.1,4384.9,3.4408]
[1756973980375,0.8315,4385.0,4384.9,3.2078]
[1756973980575,2.45898322,4385.0,4384.9,3.2078]
[1756973980873,0.8315,4385.0,4384.9,3.2078]
[1756973981078,0.4265,4385.0,4384.9,3.2078]
[1756973982668,0.4265,4385.0,4384.9,3.2098]
[1756973983278,0.4265,4385.0,4384.9,3.4428]
[1756973984580,0.8202,4385.0,4384.9,0.002]
[1756973984777,0.2931,4384.9,4384.4,3.2078]
[1756973984975,0.8009,4384.5,4384.4,3.2098]
[1756973985276,0.8009,4384.5,4384.4,3.4428]
[1756973985482,0.4072,4384.5,4384.4,3.4428]
[1756973985783,0.1197,4385.0,4384.4,3.4428]
[1756973986075,0.6078,4385.0,4384.9,1.62948322]
[1756973986280,0.4128,4385.0,4384.9,1.62948322]
[1756973986584,0.0554,4385.4,4384.9,5.07028322]
[1756973986774,0.0554,4385.4,4385.3,1.62948322]
[1756973987078,0.2931,4385.7,4385.3,1.86248322]
[1756973987279,0.2931,4385.7,4385.6,4.83728322]
[1756973987483,0.2931,4385.7,4385.6,5.07028322]
[1756973988576,0.0554,4385.9,4385.6,5.07028322]
[1756973988783,0.3485,4385.9,4385.6,5.07028322]
[1756973989082,0.2931,4385.8,4385.6,5.07028322]
[1756973989475,0.2931,4385.8,4385.7,1.99141161]
[1756973989769,0.0554,4385.9,4385.8,0.002]
[1756973989973,0.195,4385.9,4385.8,0.002]
[1756973990177,0.4881,4385.9,4385.8,0.002]
[1756973992085,0.6868,4385.9,4385.8,0.002]
[1756973994283,0.6868,4385.9,4385.8,0.235]
[1756973995686,0.2931,4385.9,4385.8,0.235]
[1756973995888,0.3485,4386.1,4385.8,0.235]
[1756973996086,0.3485,4386.1,4386.0,1.99341161]
[1756973996276,0.2931,4386.1,4386.0,2.22641161]
[1756973997086,0.6868,4386.1,4386.0,0.234]
[1756973997586,0.6868,4386.1,4386.0,0.001]
[1756973997789,0.6868,4386.1,4386.0,0.234]
[1756973998683,0.6868,4386.1,4386.0,2.22541161]
[1756973999387,0.6868,4386.1,4386.0,2.22641161]
[1756974000493,0.6868,4386.1,4386.0,0.233]
[1756974000787,0.6868,4385.7,4385.6,3.2088]
[1756974000988,0.2931,4385.7,4385.6,3.4428]
[1756974001385,0.1141,4386.0,4385.6,3.4428]
[1756974001589,0.6022,4386.0,4385.9,1.99341161]
[1756974002191,0.8009,4386.0,4385.9,1.99341161]
[1756974002594,0.2931,4385.9,4385.6,3.2078]
[1756974002786,0.6868,4385.7,4385.6,3.2078]
[1756974003186,4.6868,4385.7,4385.6,3.2078]
[1756974003387,0.6868,4385.7,4385.6,3.2078]
[1756974004090,0.4881,4385.7,4385.6,3.2098]
[1756974004390,0.1141,4386.0,4385.6,7.67081999]
[1756974004694,0.2931,4386.2,4385.9,1.99341161]
[1756974004894,0.3485,4386.3,4386.2,0.002]
[1756974005095,0.2931,4386.3,4386.2,0.235]
[1756974005793,0.6868,4386.3,4386.1,1.99141161]
[1756974005991,0.6868,4385.7,4385.6,0.233]
[1756974006194,0.6868,4385.7,4385.6,0.235]
[1756974006504,0.3485,4385.9,4385.6,2.22641161]
[1756974006692,0.2931,4385.8,4385.6,2.22641161]
[1756974006992,0.0554,4385.9,4385.6,2.22641161]
[1756974007195,0.2931,4385.8,4385.6,2.22641161]
[1756974007395,0.195,4385.7,4385.6,1.99341161]
[1756974007698,0.2931,4385.8,4385.6,2.22641161]
[1756974007885,0.0554,4385.9,4385.6,2.22641161]
[1756974008895,0.4881,4385.7,4385.6,1.99341161]
[1756974009091,0.3937,4385.7,4385.6,0.233]
[1756974009296,0.3937,4385.7,4385.6,2.22441161]
[1756974009497,0.3937,4385.7,4385.6,2.22541161]
[1756974009697,0.6868,4385.7,4385.6,2.22541161]
[1756974009996,0.6868,4385.7,4385.6,2.22641161]
[1756974010498,0.6868,4385.7,4385.6,2.22441161]
[1756974010710,0.3937,4385.7,4385.3,1.99141161]
[1756974010894,0.6868,4385.7,4385.6,0.233]
[1756974011095,0.1141,4385.5,4384.4,0.41043]
[1756974011400,0.6022,4385.0,4384.9,42.79141161]
[1756974011702,0.6022,4385.0,4384.9,43.02441161]
[1756974012100,0.4072,4385.0,4384.9,43.02441161]
[1756974016505,0.4072,4385.0,4384.9,42.79141161]
[1756974016702,0.4072,4385.0,4384.9,43.02441161]
[1756974017006,0.6243,4384.5,4384.4,1.99141161]